lending/lending_fUSD_20240810
["ID","MTS","AMOUNT","RATE_DAILY","PERIOD"]
[334596932,1723296631707,-300.0,0.00010022,2]
[334596933,1723296631716,-23890.0,0.00010023,2]
[334596934,1723296631725,-1308.906838,0.00010023,2]
[334596935,1723296631734,-10000.0,0.00010028,2]
[334596936,1723296631744,-250.0,0.0001003,2]
[334596937,1723296631753,-236.38106385,0.00010305,2]
[334596938,1723296631763,-1022.92843449,0.00010305,2]
[334596939,1723296631772,-303.90469939,0.00010305,2]
[334596940,1723296631781,-168.0,0.00010343,2]
[334596941,1723296631791,-400.45,0.00010482,2]
[334596942,1723296631800,-302.4,0.00010519,2]
[334596943,1723296631809,-150.0,0.00010799,2]
[334596944,1723296631819,-562.349,0.000108,2]
[334596945,1723296631828,-784.6117,0.000108,2]
[334596946,1723296631838,-2496.81,0.000108,2]
[334596947,1723296631848,-835.17,0.000108,2]
[334596948,1723296631857,-5000.0,0.00010851,2]
[334596949,1723296631867,-255.66,0.00010851,2]
[334596950,1723296631876,-200.0,0.00010873,2]
[334596951,1723296631886,-3000.0,0.0001089,2]
[334596952,1723296631897,-10899.67452669,0.00010899,2]
[334596953,1723296631907,-1000.0,0.000109,2]
[334596954,1723296631917,-83683.70057292,0.000109,2]
[334596955,1723296631929,-492.87,0.000109,2]
[334596956,1723296631940,-6499.02376926,0.000109,2]
[334596957,1723296631952,-603.38328281,0.000109,2]
[334596958,1723296631971,-278.60878409,0.000109,2]
[334596959,1723296631982,-1386.10575894,0.000109,2]
[334596960,1723296631995,-289.3455407,0.000109,2]
[334596961,1723296632007,-4773.11977575,0.000109,2]
[334596962,1723296632019,-6286.357445,0.000109,2]
[334596963,1723296632030,-45735.36960216,0.000109,2]
[334596966,1723296637767,-566.6201,0.000108,2]
[334596967,1723296637777,-1210.3799,0.000109,2]
[334596968,1723296637847,-11096.09015601,0.000109,2]
[334596969,1723296637860,-695.50208201,0.000109,2]
[334596970,1723296638007,-9895.35387175,0.000109,2]
[334596971,1723296638086,-7266.4872586,0.000109,2]
[334596972,1723296638096,-835.17,0.000109,2]
[334596973,1723296638105,-420.82,0.000109,2]
[334596974,1723296638114,-220.7,0.000109,2]
[334596975,1723296638123,-200.58432337,0.000109,2]
[334596976,1723296638132,-303.96878588,0.000109,2]
[334596977,1723296638141,-1803.82334936,0.000109,2]
[334596978,1723296638150,-162.97553613,0.000109,2]
[334596979,1723296638160,-2000.0,0.00010959,2]
[334596980,1723296638172,-150.0,0.00010959,2]
[334596981,1723296638182,-196.76212902,0.00010973,2]
[334596982,1723296638195,-426.02,0.00010978,2]
[334596983,1723296638205,-501.49882417,0.00010999,2]
[334596984,1723296638214,-228.79535943,0.00010999,2]
[334596985,1723296638223,-1030.15064302,0.00010999,3]
[334596986,1723296638233,-1030.15064302,0.00010999,3]
[334596987,1723296638243,-29140.01619327,0.00011,2]
[334596988,1723296638254,-2953.88686576,0.00011,2]
[334596990,1723296639883,-840.77658634,0.00011,2]
[334596991,1723296639984,-719.26763437,0.00011,2]
[334596992,1723296639996,-1091.10769708,0.00011,2]
[334596993,1723296640007,-153890.4308716,0.00011,2]
[334596994,1723296640017,-2051.03806024,0.00011,2]
[334596995,1723296642287,-1214.0599,0.00011,2]
[334596996,1723296642367,-1300.0,0.00011,2]
[334596997,1723296642378,-960.36538171,0.00011,2]
[334596998,1723296642389,-1027.23639687,0.00011,2]
[334597020,1723296642805,-686.36462203,0.00011,2]
[334597024,1723296645837,-353.47,0.00011,2]
[334597025,1723296645848,-704.85845544,0.00011,2]
[334597026,1723296645859,-656.37,0.00011,2]
[334597027,1723296645875,-561.55,0.00011,2]
[334597028,1723296645942,-549.96057904,0.00011,2]
[334597029,1723296646027,-459.9710127,0.00011,2]
[334597030,1723296646122,-18021.09840736,0.00011,2]
[334597031,1723296646133,-303.8890929,0.00011,2]
[334597032,1723296646145,-6320.5,0.00011,2]
[334597045,1723296836897,383.01,9.273e-05,2]
[334597046,1723297292637,363.85,9.236e-05,2]
[334597048,1723297377804,550.0,0.0001,2]
[334597060,1723297748827,345.65,8.847e-05,2]
[334597075,1723297832919,-2265.41192799,0.0001061,2]
[334597076,1723297832930,-441.92,0.00010674,2]
[334597077,1723297832941,-168.0,0.0001071,2]
[334597078,1723297832950,-300.0,0.00010899,2]
[334597079,1723297832959,-300.0,0.00010899,2]
[334597080,1723297832969,-11303.61411422,0.000109,2]
[334597081,1723297832979,-150.0,0.00010959,2]
[334597082,1723297832989,-308.26863756,0.00010997,2]
[334597083,1723297832999,-190.66279952,0.00010999,2]
[334597084,1723297833009,-96934.18136103,0.00011,2]
[334597085,1723297833019,-258657.12864306,0.00011,2]
[334597089,1723297838100,-2087.21303329,0.00011,2]
[334597090,1723297838211,-869.96684025,0.00011,2]
[334597098,1723297840271,-158.88566627,0.00010999,2]
[334597099,1723297840280,-104.75587208,0.00011,2]
[334597100,1723297840291,-911.09,0.00011,2]
[334597118,1723297842878,-543.39927312,0.00011,2]
[334597119,1723297842903,-17077.95990954,0.00011,2]
[334597120,1723297842915,-383.09005776,0.00011,2]
[334597124,1723297843030,-730.07140233,0.00011,2]
[334597125,1723297843042,-652.62529538,0.00011,2]
[334597129,1723297844048,-1279.77055881,0.00011,2]
[334597130,1723297844059,-9091.26221312,0.00011,2]
[334597131,1723297844070,-22321.06992438,0.00011,2]
[334597132,1723297844084,-3606.14856082,0.00011,2]
[334597133,1723297844095,-942.316296,0.00011,2]
[334597143,1723297846089,-1481.03401387,0.00011,2]
[334597144,1723297846206,-2604.7579682,0.00011,2]
[334597145,1723297846218,-551.39310115,0.00011,2]
[334597146,1723297846229,-7730.50481181,0.00011,2]
[334597147,1723297846240,-12156.23076,0.00011,2]
[334597148,1723297846251,-743.3523116,0.00011,2]
[334597149,1723297846261,-943.31862009,0.00011,2]
[334597150,1723297846272,-635.39287192,0.00011,2]
[334597151,1723297846283,-734.01641473,0.00011,2]
[334597153,1723297859379,7831.19467403,0.0001,2]
[334597154,1723297859403,3212.41685897,0.0001,2]
[334597155,1723297913046,1321.1837,9.907e-05,2]
[334597156,1723297970283,817.22,0.00025,60]
[334597157,1723298277586,372.47,8.416e-05,2]
[334597160,1723298713091,1004.13535698,0.00027,120]
[334597170,1723298778679,374.23,8.304e-05,2]
[334597171,1723298901472,500.0,0.00027,120]
[334597172,1723298928784,250.0,9.996e-05,2]
[334597186,1723299032084,-155.73,0.00010056,2]
[334597187,1723299032094,-353.54,0.00010117,2]
[334597188,1723299032106,-10000.0,0.0001013,2]
[334597189,1723299032116,-150.0,0.00010142,2]
[334597190,1723299032127,-300.0,0.00010142,2]
[334597191,1723299032137,-6611.97465705,0.00010143,2]
[334597192,1723299032147,-1955.75,0.00010143,2]
[334597193,1723299032157,-99526.5285443,0.00010143,5]
[334597194,1723299032166,-940.97,0.00010156,2]
[334597195,1723299032175,-639.51,0.0001017,2]
[334597196,1723299032185,-239.36,0.00010181,2]
[334597197,1723299032194,-646.46,0.00010323,2]
[334597198,1723299032203,-1997.2,0.00010323,2]
[334597199,1723299032213,-210.2,0.00010323,2]
[334597200,1723299032227,-374.23,0.00010568,2]
[334597201,1723299032236,-18469.52,0.00010568,2]
[334597202,1723299032245,-3109.03672249,0.00010568,2]
[334597203,1723299032256,-490.46366303,0.00010568,2]
[334597204,1723299032268,-697.89036063,0.00010568,2]
[334597205,1723299032280,-597.34227907,0.00010568,2]
[334597206,1723299032291,-791.49334376,0.00010568,2]
[334597207,1723299032302,-450.44936041,0.00010568,2]
[334597208,1723299032318,-3800.0,0.00010568,2]
[334597209,1723299032330,-881.42115809,0.00010568,2]
[334597210,1723299032345,-10353.07846241,0.00010568,2]
[334597211,1723299032356,-720.75698845,0.00010568,2]
[334597212,1723299032368,-706.77598637,0.00010568,2]
[334597213,1723299032383,-2832.5578982,0.00010568,2]
[334597214,1723299032418,-4568.72377709,0.00010568,2]
[334597215,1723299032428,-168.01,0.00010703,2]
[334597216,1723299032437,-1582.18458485,0.0001089,2]
[334597217,1723299032449,-1417.81541515,0.0001089,2]
[334597218,1723299032458,-1754.57126871,0.00010899,2]
[334597238,1723299038249,-9050.64303251,0.00010899,2]
[334597239,1723299038258,-1080.4312,0.000109,2]
[334597240,1723299038267,-710.2931,0.000109,2]
[334597241,1723299038277,-268.3482,0.000109,2]
[334597242,1723299038287,-14902.4165,0.000109,2]
[334597243,1723299038296,-2354.23,0.000109,2]
[334597244,1723299038306,-499.99,0.000109,2]
[334597245,1723299038316,-150.99,0.000109,2]
[334597246,1723299038326,-7500.0,0.000109,2]
[334597247,1723299038335,-1202.54889958,0.000109,2]
[334597248,1723299038344,-309.33600731,0.000109,2]
[334597249,1723299038354,-249.2051603,0.00010997,2]
[334597250,1723299038363,-3605.3309067,0.00010997,2]
[334597251,1723299038376,-1250.4558686,0.00010997,2]
[334597252,1723299038386,-290.9929207,0.00010997,2]
[334597253,1723299038395,-170.53728179,0.00010999,2]
[334597254,1723299038405,-210083.37730797,0.00011,2]
[334597255,1723299038414,-81487.91595271,0.00011,2]
[334597256,1723299038426,-373.6491406,0.00011,2]
[334597257,1723299038437,-4914.34262637,0.00011,2]
[334597258,1723299038598,-483.7355491,0.00011,2]
[334597259,1723299038611,-609.675,0.00011,2]
[334597260,1723299038630,-20209.25973971,0.00011,2]
[334597268,1723299040601,-6763.4989264,0.00011,2]
[334597271,1723299041203,-344395.17211511,0.00011,2]
[334597275,1723299041215,-283.71,0.00011,2]
[334597278,1723299041226,-276.24575019,0.00011,2]
[334597279,1723299041591,-607.6354,0.00011,2]
[334597281,1723299043119,-336.84091214,0.00011,2]
[334597282,1723299043133,-125549.97330928,0.00011,2]
[334597284,1723299044590,-1202.82442801,0.00011,2]
[334597294,1723299046372,-7161.60314508,0.00011,2]
[334597295,1723299046390,-301.7149568,0.00011,2]
[334597296,1723299046484,-315.79713359,0.00011,2]
[334597314,1723299204929,550.0,0.0001,2]
[334597316,1723299309394,360.46,8.375e-05,2]
[334597319,1723299718786,400.52350092,9.97e-05,2]
[334597320,1723299723768,400.5235009,9.983e-05,2]
[334597321,1723299728575,400.5235009,9.995e-05,2]
[334597322,1723299769763,342.43,8.219e-05,2]
[334597323,1723299869397,12015.23893831,9.962e-05,2]
[334597324,1723299869419,7698.71679735,9.962e-05,2]
[334597326,1723300053718,1058.022989,0.00027,120]
[334597339,1723300232347,-5710.98748693,0.00010026,2]
[334597340,1723300232391,-505.95034743,0.00010026,2]
[334597341,1723300232439,-1377.00182255,0.00010026,2]
[334597342,1723300232450,-2354.73262451,0.00010026,2]
[334597343,1723300232462,-453.51,0.00010026,2]
[334597344,1723300232473,-2352.41312678,0.00010026,2]
[334597345,1723300232484,-3054.8697043,0.00010026,2]
[334597346,1723300232496,-2317.36112115,0.00010026,2]
[334597347,1723300232507,-5527.29376635,0.00010026,2]
[334597348,1723300232516,-4133.98221876,0.0001006,2]
[334597349,1723300232573,-858.16390953,0.0001006,2]
[334597350,1723300232584,-4489.4571352,0.0001006,2]
[334597351,1723300232596,-518.39673651,0.0001006,2]
[334597352,1723300232605,-282.84,0.00010085,2]
[334597353,1723300232615,-182.77,0.00010095,2]
[334597354,1723300232624,-940.97,0.00010107,2]
[334597355,1723300232633,-717.16,0.00010226,2]
[334597356,1723300232647,-342.43,0.0001048,2]
[334597357,1723300232656,-2803.13635426,0.0001079,2]
[334597358,1723300232666,-329.54,0.00010799,2]
[334597359,1723300232675,-2427.71,0.00010799,2]
[334597360,1723300232686,-280.3,0.00010799,2]
[334597361,1723300232696,-150.0,0.00010799,2]
[334597362,1723300232705,-5223.05216152,0.000108,2]
[334597368,1723300238583,-2514.95113848,0.000108,2]
[334597369,1723300238593,-682.23,0.000108,2]
[334597370,1723300238603,-251.1988,0.000109,2]
[334597371,1723300238612,-549.31470197,0.000109,2]
[334597372,1723300238624,-24059.56479803,0.000109,2]
[334597373,1723300238634,-175.10094526,0.000109,2]
[334597374,1723300238648,-233.32932163,0.000109,2]
[334597375,1723300238658,-250.0,0.00010959,2]
[334597376,1723300238667,-200.0,0.00010973,2]
[334597377,1723300238678,-39524.45566666,0.0001099,3]
[334597378,1723300238689,-756.50129239,0.0001099,3]
[334597379,1723300238701,-1393.41253977,0.0001099,3]
[334597380,1723300238712,-32073.67906337,0.0001099,3]
[334597381,1723300238836,-425.4,0.0001099,3]
[334597382,1723300238867,-2603.10643675,0.0001099,3]
[334597388,1723300240413,-30118.14504613,0.0001099,3]
[334597389,1723300240564,-337.94,0.0001099,3]
[334597390,1723300243239,-606.28027285,0.000109,2]
[334597391,1723300243332,-195.41899353,0.000109,2]
[334597393,1723300243342,-13321.94057603,0.0001099,3]
[334597395,1723300243353,-359.25534895,0.0001099,3]
[334597398,1723300243392,-969.65529697,0.0001099,3]
[334597400,1723300243403,-41000.183405,0.0001099,3]
[334597414,1723300243551,-614.29174979,0.0001099,3]
[334597418,1723300243583,-3472.09929284,0.0001099,3]
[334597439,1723300364384,308.18,8.818e-05,2]
[334597446,1723300978530,292.77,8.439e-05,2]
[334597447,1723301032085,550.0,0.0001,2]
[334597462,1723301431963,-289.01177991,0.00010007,2]
[334597463,1723301432012,-319.86038199,0.00010007,2]
[334597464,1723301432035,-47.9578381,0.00010007,2]
[334597465,1723301432045,-643.41,0.00010037,2]
[334597466,1723301432054,-470.48,0.00010137,2]
[334597467,1723301432064,-178.0,0.00010186,2]
[334597468,1723301432073,-3941.60825715,0.00010187,2]
[334597470,1723301437588,-200.0,0.0001008,2]
[334597471,1723301437598,-1406.73102151,0.00010187,2]
[334597472,1723301437610,-1451.33807564,0.00010187,2]
[334597475,1723301437761,-6491.3326457,0.00010187,2]
[334597476,1723301437770,-1000.0,0.00010243,2]
[334597477,1723301437780,-7918.25449195,0.00010243,2]
[334597478,1723301437789,-155.74,0.0001026,2]
[334597479,1723301437798,-228.04,0.00010375,2]
[334597480,1723301437808,-292.77,0.00010703,2]
[334597481,1723301437817,-13011.61445221,0.00010899,2]
[334597482,1723301437827,-1162.92871598,0.000109,2]
[334597483,1723301437836,-2827.73640975,0.000109,2]
[334597484,1723301437846,-356.68,0.00010959,2]
[334597485,1723301437856,-3000.0,0.00010973,2]
[334597486,1723301437866,-493.28190959,0.0001098,2]
[334597487,1723301437876,-150.0,0.00010989,2]
[334597488,1723301437886,-500.0,0.00010989,2]
[334597489,1723301437896,-500.0,0.00010989,2]
[334597490,1723301437905,-500.0,0.00010989,2]
[334597491,1723301437914,-500.0,0.00010989,2]
[334597492,1723301437924,-500.0,0.00010989,2]
[334597493,1723301437933,-500.0,0.00010989,2]
[334597494,1723301437943,-580.65483022,0.00010989,2]
[334597495,1723301437952,-500.0,0.00010989,2]
[334597496,1723301437962,-500.0,0.00010989,2]
[334597497,1723301437972,-500.0,0.00010989,2]
[334597498,1723301437982,-500.0,0.00010989,2]
[334597499,1723301437991,-500.0,0.00010989,2]
[334597500,1723301438003,-525.07302235,0.00010989,2]
[334597501,1723301438012,-500.0,0.00010989,2]
[334597502,1723301438022,-500.0,0.00010989,2]
[334597503,1723301438031,-500.0,0.00010989,2]
[334597504,1723301438041,-500.0,0.00010989,2]
[334597505,1723301438050,-500.0,0.00010989,2]
[334597506,1723301438059,-500.0,0.00010989,2]
[334597507,1723301438069,-500.0,0.00010989,2]
[334597508,1723301438079,-500.0,0.00010989,2]
[334597509,1723301438088,-500.0,0.00010989,2]
[334597510,1723301438097,-500.0,0.00010989,2]
[334597511,1723301438106,-500.0,0.00010989,2]
[334597512,1723301438115,-500.0,0.00010989,2]
[334597513,1723301438124,-500.0,0.00010989,2]
[334597514,1723301438133,-500.0,0.00010989,2]
[334597515,1723301438147,-500.0,0.00010989,2]
[334597516,1723301438156,-500.0,0.00010989,2]
[334597517,1723301438165,-9515.61455888,0.0001099,3]
[334597519,1723301438177,-1427.25349251,0.0001099,3]
[334597521,1723301438189,-8208.53520196,0.0001099,3]
[334597522,1723301438208,-1989.47898931,0.0001099,3]
[334597523,1723301438220,-817.15530766,0.0001099,3]
[334597524,1723301438232,-16182.84950419,0.0001099,3]
[334597525,1723301438251,-10730.27963987,0.0001099,3]
[334597526,1723301438262,-325.88,0.0001099,3]
[334597527,1723301438273,-20772.32590263,0.0001099,3]
[334597538,1723301439586,-449.03088406,0.0001099,3]
[334597539,1723301439597,-685.08301683,0.0001099,3]
[334597540,1723301439609,-582.27256892,0.0001099,3]
[334597546,1723301439666,-3868.2,0.0001099,3]
[334597548,1723301439678,-1072.66280005,0.0001099,3]
[334597556,1723301439750,-6895.38035321,0.0001099,3]
[334597558,1723301439762,-4302.89567398,0.0001099,3]
[334597560,1723301439773,-867.76559331,0.0001099,3]
[334597561,1723301439961,-3504.1443,0.0001099,3]
[334597562,1723301439973,-2872.13879448,0.0001099,3]
[334597563,1723301439984,-440.25187764,0.0001099,3]
[334597564,1723301439996,-602.00767301,0.0001099,3]
[334597565,1723301440014,-20001.21171905,0.0001099,3]
[334597566,1723301440037,-10114.15909603,0.0001099,3]
[334597584,1723301442563,-1079.31918,0.0001099,3]
[334597585,1723301442574,-653.31270692,0.0001099,3]
[334597589,1723301442628,-14518.19882609,0.0001099,3]
[334597599,1723301444063,-265.6000002,0.0001099,3]
[334597634,1723301481752,1465.1305333,0.0001,2]
[334597636,1723301529489,500.0,0.0001,2]
[334597637,1723301529998,500.0,0.0001,2]
[334597638,1723301530458,500.0,0.0001,2]
[334597639,1723301530865,500.0,0.0001,2]
[334597640,1723301531304,500.0,0.0001,2]
[334597641,1723301531906,500.0,0.0001,2]
[334597642,1723301532358,500.0,0.0001,2]
[334597643,1723301532785,922.0,0.0001,2]
[334597644,1723301538777,303.35,8.341e-05,2]
[334597645,1723301552113,299.9361353,0.0001,2]
[334597646,1723301560084,299.9361353,0.0001,2]
[334597649,1723302051445,288.18,8.219e-05,2]
[334597651,1723302185598,1257.03046369,9.962e-05,2]
[334597652,1723302316985,150.0,9.888e-05,2]
[334597665,1723302513007,273.77,8.219e-05,2]
[334597668,1723302611954,155.0,9.962e-05,2]
[334597672,1723302631653,-462.51008299,0.00010062,2]
[334597673,1723302631663,-200.0,0.00010083,2]
[334597674,1723302631672,-155.40991701,0.00010162,2]
[334597675,1723302631719,-27.02008299,0.00010162,2]
[334597676,1723302631734,-419.51,0.00010177,2]
[334597677,1723302631744,-177.27454451,0.00010262,2]
[334597678,1723302631906,-622.72545549,0.00010262,2]
[334597679,1723302631917,-273.77,0.00010478,2]
[334597680,1723302631926,-104.58363379,0.000108,2]
[334597681,1723302631938,-1731.28504997,0.000108,2]
[334597682,1723302631981,-494.33663641,0.000108,2]
[334597687,1723302637900,-169.79467983,0.000108,2]
[334597688,1723302637909,-200.58272852,0.00010873,2]
[334597689,1723302637919,-94.11474572,0.00010873,2]
[334597690,1723302637931,-80.16207435,0.00010873,2]
[334597691,1723302637940,-300.0,0.00010898,2]
[334597692,1723302637950,-14179.83792565,0.00010899,2]
[334597693,1723302637962,-282.04696975,0.00010899,2]
[334597694,1723302637973,-131.27245324,0.00010899,2]
[334597695,1723302637983,-186.42,0.000109,2]
[334597696,1723302637992,-249.07108734,0.000109,2]
[334597697,1723302638093,-653.5169567,0.000109,2]
[334597698,1723302638169,-56723.37880858,0.000109,2]
[334597699,1723302638181,-285.49172499,0.000109,2]
[334597700,1723302638193,-600.0,0.000109,2]
[334597701,1723302638204,-713.52089121,0.000109,2]
[334597702,1723302638231,-6136.99102678,0.000109,2]
[334597710,1723302639856,-3379.73222196,0.000109,2]
[334597711,1723302639867,-1248.0,0.000109,2]
[334597712,1723302639881,-543.43566378,0.000109,2]
[334597713,1723302639927,-607.22436716,0.000109,2]
[334597714,1723302640163,-282.67854512,0.000109,2]
[334597721,1723302642718,-137475.56070638,0.000109,2]
[334597722,1723302642732,-835.17,0.000109,2]
[334597723,1723302642743,-420.92,0.000109,2]
[334597724,1723302642755,-150.0,0.000109,2]
[334597725,1723302642766,-832.75,0.000109,2]
[334597726,1723302642776,-420.92,0.000109,2]
[334597727,1723302642786,-150.0,0.000109,2]
[334597728,1723302642797,-420.92,0.000109,2]
[334597729,1723302642806,-300.14992908,0.000109,2]
[334597730,1723302642815,-166.0645653,0.000109,2]
[334597731,1723302642825,-420.92,0.000109,2]
[334597732,1723302642834,-420.92,0.000109,2]
[334597733,1723302642843,-150.0,0.000109,2]
[334597734,1723302642852,-5802.46616665,0.000109,2]
[334597735,1723302642862,-165.19422617,0.000109,2]
[334597736,1723302642871,-173.5900964,0.000109,2]
[334597737,1723302642880,-500.0,0.00010989,2]
[334597738,1723302642890,-3000.0,0.00010989,2]
[334597739,1723302642899,-161523.19003663,0.0001099,3]
[334597740,1723302642908,-2000.0,0.0001099,2]
[334597741,1723302642918,-200.0,0.0001099,2]
[334597742,1723302642927,-2769.387933,0.00010997,2]
[334597743,1723302642936,-2443.2159373,0.00010997,2]
[334597744,1723302642945,-703.2440824,0.00010997,2]
[334597745,1723302642954,-847.3934254,0.00010997,2]
[334597746,1723302642963,-2120.8334688,0.00010997,2]
[334597747,1723302642972,-590.37249876,0.00010997,2]
[334597748,1723302642982,-202.31441505,0.00010999,2]
[334597749,1723302642991,-128435.90726109,0.00011,2]
[334597750,1723302643000,-259580.83305506,0.00011,2]
[334597751,1723302643015,-1740.63,0.00011,2]
[334597752,1723302643026,-636.225,0.00011,2]
[334597759,1723302646190,-322.08,0.00011,2]
[334597761,1723302858050,550.0,0.0001,2]
[334597769,1723302934360,441.5527904,0.00025,120]
[334597770,1723302936312,1685.99993506,0.0001,2]
[334597771,1723302936335,20000.0,0.0001,2]
[334597772,1723302936357,20000.0,0.0001,2]
[334597773,1723302936380,20000.0,0.0001,2]
[334597774,1723302936410,20000.0,0.0001,2]
[334597775,1723302936432,20000.0,0.0001,2]
[334597777,1723302972422,150.0,8.219e-05,2]
[334597778,1723302972448,126.28,8.219e-05,2]
[334597779,1723303506470,325.7,8.219e-05,2]
[334597815,1723303562188,150.0,8.219e-05,2]
[334597816,1723303562209,150.0,8.219e-05,2]
[334597817,1723303562230,139.26763065,8.219e-05,2]
[334597818,1723303587778,150.0,9.514e-05,2]
[334597819,1723303587800,100.0,9.514e-05,2]
[334597820,1723303641559,150.0,7.625e-05,2]
[334597821,1723303641581,23.04,7.625e-05,2]
[334597824,1723303658249,155.18093298,9.514e-05,2]
[334597826,1723303733601,227.7293364,9.514e-05,2]
[334597831,1723303829094,150.0,9.466e-05,2]
[334597832,1723303829120,32.43,9.466e-05,2]
[334597841,1723303831899,-7657.3,9.783e-05,2]
[334597843,1723303831909,-345.50118713,9.793e-05,2]
[334597844,1723303831919,-1235.62,9.793e-05,2]
[334597845,1723303831928,-160.0,9.795e-05,2]
[334597846,1723303831938,-209.75,9.833e-05,2]
[334597847,1723303831947,-300.0,9.899e-05,2]
[334597848,1723303831956,-5498.2493,9.9e-05,2]
[334597849,1723303831966,-186.42,9.941e-05,2]
[334597850,1723303831976,-150.0,9.978e-05,2]
[334597851,1723303831985,-356.46,9.978e-05,2]
[334597852,1723303831994,-150.0,9.978e-05,2]
[334597853,1723303832003,-356.46,9.98e-05,2]
[334597854,1723303832013,-150.0,9.98e-05,2]
[334597855,1723303832022,-150.0,9.98e-05,2]
[334597856,1723303832031,-150.0,9.98e-05,2]
[334597857,1723303832047,-353.8,9.98e-05,2]
[334597858,1723303832062,-150.0,9.98e-05,2]
[334597859,1723303832071,-150.0,9.98e-05,2]
[334597860,1723303832081,-150.0,9.999e-05,2]
[334597861,1723303832090,-141823.20771156,0.0001,2]
[334597862,1723303832104,-6050.0,0.0001,2]
[334597889,1723303838077,-41171.85641686,0.0001,2]
[334597891,1723303838315,-599.2800009,0.0001,2]
[334597892,1723303838340,-7334.05452903,0.0001,2]
[334597893,1723303838554,-450.17856124,0.0001,2]
[334598025,1723303839970,-359.4052195,0.0001,2]
[334598027,1723303839982,-292.036,0.0001,2]
[334598034,1723303840036,-44608.76008957,0.0001,2]
[334598054,1723303840233,-393.60499999,0.0001,2]
[334598056,1723303840245,-1215.79877,0.0001,2]
[334598429,1723303846283,-305.81695082,0.0001,2]
[334598430,1723303846464,-624.09688597,0.0001,2]
[334598431,1723303846475,-552.86,0.0001,2]
[334598434,1723303958832,155.0,9.65e-05,2]
[334598435,1723304022501,150.0,9.65e-05,2]
[334598436,1723304022524,140.93231395,9.65e-05,2]
[334598442,1723304342163,351.13,8.219e-05,2]
[334598451,1723304864607,333.57,8.219e-05,2]
[334598467,1723305032078,-455.18285697,9.753e-05,2]
[334598468,1723305032091,-590.71338148,9.753e-05,2]
[334598469,1723305032103,-825.40068476,9.753e-05,2]
[334598475,1723305032152,-7556.94307679,9.753e-05,2]
[334598477,1723305032163,-701.50906218,9.788e-05,2]
[334598480,1723305032175,-170.49093782,9.788e-05,2]
[334598482,1723305032189,-174.86,9.814e-05,2]
[334598484,1723305032201,-200.0,9.818e-05,2]
[334598487,1723305032213,-300.0,9.819e-05,2]
[334598489,1723305032225,-1166.94502149,9.821e-05,2]
[334598491,1723305032239,-2933.40559046,9.821e-05,2]
[334598494,1723305032257,-1344.78568796,9.821e-05,2]
[334598507,1723305038314,-1492.34760704,9.821e-05,2]
[334598508,1723305038325,-160.0,9.827e-05,2]
[334598509,1723305038336,-209.75,9.835e-05,2]
[334598510,1723305038346,-2022.4053,9.9e-05,2]
[334598511,1723305038357,-150.0,9.999e-05,2]
[334598512,1723305038368,-16986.66816859,0.0001,2]
[334598516,1723305040195,-23001.84484606,0.0001,2]
[334598517,1723305040208,-284.87258687,0.0001,2]
[334598518,1723305040466,-1627.42892929,0.0001,2]
[334598519,1723305040478,-420.92,0.0001,2]
[334598520,1723305040489,-420.92,0.0001,2]
[334598521,1723305040499,-835.17,0.0001,2]
[334598522,1723305040510,-550.0,0.0001,2]
[334598523,1723305040520,-420.92,0.0001,2]
[334598524,1723305040530,-835.17,0.0001,2]
[334598525,1723305040542,-698.25,0.0001,2]
[334598526,1723305040553,-191.05896438,0.0001,2]